bitfinex-derivatives/quotes_BNBF0:USTF0_20250603
["timestamp","ask_amount","ask_price","bid_price","bid_amount"]
[1748986616034,1.12085345,659.38,658.76,0.3036007]
[1748986616235,0.99675493,659.37,658.76,0.3036007]
[1748986616436,0.99675493,659.36,658.76,0.3036007]
[1748986616633,0.99675493,659.35,658.76,0.3036007]
[1748986616839,0.99675493,659.34,658.77,0.48024378]
[1748986617037,0.99675493,659.33,658.78,0.30359148]
[1748986617238,0.99675493,659.32,658.78,0.30359148]
[1748986617438,0.99675493,659.31,658.78,0.30359148]
[1748986617638,0.99675493,659.3,658.78,0.30359148]
[1748986617938,1.12085345,659.38,658.78,0.78383526]
[1748986617939,0.99675493,659.29,658.78,0.78383526]
[1748986618133,0.99675493,659.28,658.78,0.78383526]
[1748986618333,0.99675493,659.27,658.78,0.78383526]
[1748986618535,0.99675493,659.26,658.78,0.78383526]
[1748986618735,0.99675493,659.25,658.79,0.48024378]
[1748986618936,0.99675493,659.24,658.8,0.30358227]
[1748986619133,0.99675493,659.23,658.8,0.30358227]
[1748986619333,0.99675493,659.22,658.8,0.30358227]
[1748986619533,0.99675493,659.21,658.8,0.30358227]
[1748986619733,0.9966638,659.2,658.8,0.30358227]
[1748986619940,0.9966638,659.19,658.8,0.30358227]
[1748986620235,0.9966638,659.18,658.8,0.30358227]
[1748986620437,0.9966638,659.17,658.8,0.30358227]
[1748986620636,1.12103404,659.41,658.8,0.30358227]
[1748986620839,0.99663832,659.4,658.8,0.30358227]
[1748986621034,0.99663832,659.39,658.8,0.30358227]
[1748986621236,0.99663832,659.38,658.8,0.30358227]
[1748986621438,0.99663832,659.37,658.8,0.30358227]
[1748986621634,0.99663832,659.36,658.8,0.30358227]
[1748986621834,0.99663832,659.35,658.8,0.30358227]
[1748986622033,0.99663832,659.34,658.8,0.30358227]
[1748986622233,1.49607793,659.53,658.8,0.30358227]
[1748986622438,1.12107999,659.4,658.8,0.30358227]
[1748986622633,0.99670222,659.39,658.8,0.30358227]
[1748986622838,0.99670222,659.38,658.8,0.30358227]
[1748986623139,0.99670222,659.37,658.8,0.30358227]
[1748986623340,0.99670222,659.36,658.8,0.30358227]
[1748986623535,0.99670222,659.35,658.8,0.30358227]
[1748986623738,0.99670222,659.34,658.8,0.30358227]
[1748986623939,0.99670222,659.33,658.8,0.30358227]
[1748986624137,0.99670222,659.32,658.8,0.30358227]
[1748986624334,1.12107999,659.4,658.8,0.30358227]
[1748986624335,0.99670222,659.31,658.8,0.30358227]
[1748986624641,0.99670222,659.3,658.8,0.30358227]
[1748986624845,0.99670222,659.29,658.8,0.30358227]
[1748986625045,0.99670222,659.28,658.8,0.30358227]
[1748986625244,0.99670222,659.27,658.8,0.30358227]
[1748986625439,0.99670222,659.26,658.8,0.30358227]
[1748986625641,0.99670222,659.25,658.8,0.30358227]
[1748986625841,0.99670222,659.24,658.8,0.30358227]
[1748986626039,0.99670222,659.23,658.8,0.30358227]
[1748986626338,0.99726651,659.22,658.8,0.30358227]
[1748986626541,0.99726651,659.21,658.8,0.30358227]
[1748986626740,0.99726651,659.2,658.8,0.30358227]
[1748986626944,0.99726651,659.19,658.8,0.30358227]
[1748986627140,0.99726651,659.18,658.8,0.30358227]
[1748986627445,3.7475234,660.21,658.8,0.30358227]
[1748986627446,0.99726651,659.17,658.8,0.30358227]
[1748986627745,0.99726651,659.16,658.8,0.30358227]
[1748986627943,0.99726651,659.15,658.8,0.30358227]
[1748986628139,1.12185563,659.4,658.8,0.30358227]
[1748986628344,0.99755705,659.39,658.8,0.30358227]
[1748986628645,0.99755705,659.38,658.8,0.30358227]
[1748986628846,0.99755705,659.37,658.8,0.30358227]
[1748986629048,0.99755705,659.36,658.8,0.30358227]
[1748986629347,0.99755705,659.35,658.8,0.30358227]
[1748986629647,0.99755705,659.34,658.8,0.30358227]
[1748986629841,0.99755705,659.33,658.8,0.30358227]
[1748986630044,1.49607793,659.52,658.8,0.30358227]
[1748986630239,3.7475234,660.18,658.87,0.48024378]
[1748986630240,1.12215673,659.36,658.87,0.48024378]
[1748986630446,0.99762445,659.35,658.87,0.48024378]
[1748986630750,1.12215673,659.36,658.9,0.48024378]
[1748986630751,0.99762445,659.34,658.9,0.48024378]
[1748986630945,0.99762445,659.33,658.9,0.48024378]
[1748986631142,0.99762445,659.32,658.9,0.48024378]
[1748986631345,0.99762445,659.31,658.9,0.48024378]
[1748986631648,0.99762445,659.3,658.9,0.48024378]
[1748986631847,0.99762445,659.29,658.9,0.48024378]
[1748986632048,0.99762445,659.28,658.9,0.48024378]
[1748986632245,0.99762445,659.27,658.9,0.48024378]
[1748986632447,0.99762445,659.26,658.9,0.48024378]
[1748986632649,0.99762445,659.25,658.92,0.48024378]
[1748986632849,0.99762445,659.24,658.92,0.48024378]
[1748986633048,0.99762445,659.23,658.92,0.48024378]
[1748986633245,0.99762445,659.22,658.92,0.48024378]
[1748986633445,0.99762445,659.21,658.92,0.48024378]
[1748986633646,0.99762445,659.2,658.92,0.48024378]
[1748986633849,0.99762445,659.19,658.91,0.48024378]
[1748986634050,0.99827099,659.18,658.91,0.48024378]
[1748986634251,0.99827099,659.17,658.9,0.48024378]
[1748986634446,0.99827099,659.16,658.9,0.48024378]
[1748986634747,0.99850814,659.15,658.89,0.48024378]
[1748986634946,0.99850814,659.15,658.8,0.30358227]
[1748986634947,1.12288407,659.34,658.9,0.48024378]
[1748986635145,2.24851404,659.56,658.89,0.48024378]
[1748986635146,0.99850754,659.33,658.89,0.48024378]
[1748986635349,0.99850754,659.32,658.88,0.48024378]
[1748986635648,0.99850754,659.31,658.88,0.48024378]
[1748986635847,0.99850754,659.3,658.87,0.48024378]
[1748986636047,0.99850754,659.29,658.87,0.48024378]
[1748986636251,0.99850754,659.28,658.87,0.48024378]
[1748986636447,0.99850754,659.27,658.87,0.48024378]
[1748986636646,1.12288407,659.34,658.86,0.48024378]
[1748986636647,0.99850754,659.26,658.86,0.48024378]
[1748986636850,0.99850754,659.25,658.86,0.48024378]
[1748986637051,0.99850754,659.24,658.86,0.48024378]
[1748986637249,0.99850754,659.24,658.8,0.30358227]
[1748986637250,0.99850754,659.23,658.87,0.48024378]
[1748986637451,0.99850754,659.22,658.87,0.48024378]
[1748986637653,0.99850754,659.21,658.86,0.48024378]
[1748986637853,0.99850754,659.2,658.86,0.48024378]
[1748986638049,0.9992685,659.19,658.86,0.48024378]
[1748986638355,0.9992685,659.18,658.86,0.48024378]
[1748986638657,0.9992685,659.17,658.87,0.48024378]
[1748986638856,0.9992685,659.16,658.85,0.48024378]
[1748986639158,3.7475234,659.98,658.85,0.30355923]
[1748986639159,0.9992685,659.15,658.85,0.30355923]
[1748986639458,1.12396548,659.44,658.85,0.30355923]
[1748986639652,0.99960852,659.43,658.85,0.30355923]
[1748986639856,0.99960852,659.42,658.85,0.30355923]
[1748986640058,0.99960852,659.41,658.85,0.30355923]
[1748986640259,0.99960852,659.4,658.85,0.30355923]
[1748986640456,0.99960852,659.39,658.85,0.30355923]
[1748986640653,0.99960852,659.38,658.85,0.30355923]
[1748986640857,0.99960852,659.37,658.85,0.30355923]
[1748986641061,0.99960852,659.36,658.85,0.30355923]
[1748986641257,0.99960852,659.35,658.85,0.30355923]
[1748986641454,0.99960852,659.34,658.85,0.30355923]
[1748986641658,0.99960852,659.33,658.85,0.30355923]
[1748986641961,1.00108387,659.32,658.87,0.48024378]
[1748986642158,1.00108387,659.31,658.88,0.30354541]
[1748986642359,1.00108387,659.3,658.88,0.30354541]
[1748986642558,1.00108387,659.29,658.88,0.30354541]
[1748986642758,3.7475234,660.18,658.88,0.30354541]
[1748986642759,1.00108387,659.28,658.88,0.30354541]
[1748986643059,1.00108387,659.27,658.88,0.30354541]
[1748986643260,1.00108387,659.26,658.88,0.30354541]
[1748986643559,1.49607793,659.61,658.88,0.30354541]
[1748986643560,1.12564567,659.49,658.88,0.30354541]
[1748986643756,2.12753648,659.48,658.88,0.30354541]
[1748986643956,1.00189081,659.47,658.88,0.30354541]
[1748986644153,1.00189081,659.46,658.88,0.30354541]
[1748986644460,1.00189081,659.45,658.88,0.30354541]
[1748986644660,1.00189081,659.44,658.88,0.30354541]
[1748986644855,1.00189081,659.43,658.88,0.30354541]
[1748986645062,1.00189081,659.42,658.88,0.30354541]
[1748986645258,1.00189081,659.41,658.88,0.30354541]
[1748986645458,1.00189081,659.4,658.88,0.30354541]
[1748986645653,1.00259308,659.39,658.88,0.30354541]
[1748986645864,1.00259308,659.38,658.88,0.30354541]
[1748986646160,1.00259308,659.37,658.88,0.30354541]
[1748986646462,1.00259308,659.36,658.88,0.30354541]
[1748986646661,1.00259308,659.35,658.88,0.30354541]
[1748986646961,1.00259308,659.34,658.88,0.30354541]
[1748986647157,1.00259308,659.33,658.88,0.30354541]
[1748986647362,1.00259308,659.32,658.88,0.30354541]
[1748986647558,1.00259308,659.31,658.88,0.30354541]
[1748986647763,1.00259308,659.3,658.88,0.30354541]
[1748986647959,1.12667099,659.53,658.88,0.30354541]
[1748986648161,1.00294873,659.52,658.88,0.30354541]
[1748986648366,1.00294873,659.51,658.88,0.30354541]
[1748986648562,1.00294873,659.5,658.88,0.30354541]
[1748986648765,1.00294873,659.49,658.88,0.30354541]
[1748986648963,1.00294873,659.48,658.88,0.30354541]
[1748986649165,1.00294873,659.47,658.88,0.30354541]
[1748986649369,1.00294873,659.46,658.88,0.30354541]
[1748986649570,1.00315911,659.45,658.88,0.30354541]
[1748986649769,1.00315911,659.44,658.88,0.30354541]
[1748986649966,1.00315911,659.43,658.88,0.30354541]
[1748986650168,1.00315911,659.42,658.88,0.30354541]
[1748986650369,1.00315911,659.41,658.88,0.30354541]
[1748986650565,1.00315911,659.4,658.88,0.30354541]
[1748986650870,1.00315911,659.39,658.88,0.30354541]
[1748986651070,1.00315911,659.38,658.88,0.30354541]
[1748986651271,1.00315911,659.37,658.88,0.30354541]
[1748986651569,1.00315911,659.36,658.88,0.30354541]
[1748986651764,1.00315911,659.35,658.88,0.30354541]
[1748986651969,1.00315911,659.34,658.88,0.30354541]
[1748986652169,1.00315911,659.33,658.88,0.30354541]
[1748986652371,1.00315911,659.32,658.88,0.30354541]
[1748986652565,1.00315911,659.31,658.88,0.30354541]
[1748986652765,1.00315911,659.3,658.88,0.30354541]
[1748986652969,1.00315911,659.29,658.88,0.30354541]
[1748986653170,1.12683039,659.52,658.88,0.30354541]
[1748986653364,1.49607793,659.66,658.88,0.30354541]
[1748986653566,1.12686462,659.53,658.88,0.30354541]
[1748986653765,1.00345923,659.52,658.88,0.30354541]
[1748986653972,1.00345923,659.51,658.88,0.30354541]
[1748986654170,1.00345923,659.5,658.88,0.30354541]
[1748986654373,1.00345923,659.49,658.88,0.30354541]
[1748986654566,1.00345923,659.48,658.88,0.30354541]
[1748986654766,1.00345923,659.47,658.88,0.30354541]
[1748986654966,1.00345923,659.46,658.88,0.30354541]
[1748986655166,1.00345923,659.45,658.88,0.30354541]
[1748986655370,1.00345923,659.44,658.88,0.30354541]
[1748986655672,1.12686462,659.53,658.88,0.30354541]
[1748986655673,1.00345923,659.43,658.88,0.30354541]
[1748986655867,1.00345923,659.42,658.88,0.30354541]
[1748986656070,1.00345923,659.41,658.88,0.30354541]
[1748986656266,1.49607793,659.66,658.88,0.30354541]
[1748986656267,1.00345923,659.4,658.88,0.30354541]
[1748986656474,1.00345923,659.39,658.88,0.30354541]
[1748986656669,1.00345923,659.38,658.88,0.30354541]
[1748986656869,1.00345923,659.37,658.88,0.30354541]
[1748986657071,1.00345923,659.36,658.88,0.30354541]
[1748986657271,1.00345923,659.35,658.88,0.30354541]
[1748986657473,1.00328059,659.34,658.88,0.30354541]
[1748986657672,1.00328059,659.33,658.88,0.30354541]
[1748986657876,1.00328059,659.32,658.88,0.30354541]
[1748986658069,1.00328059,659.31,658.88,0.30354541]
[1748986658273,1.12676504,659.5,658.88,0.30354541]
[1748986658474,1.00311064,659.49,658.88,0.30354541]
[1748986658674,1.00311064,659.48,658.88,0.30354541]
[1748986658971,1.00311064,659.47,658.88,0.30354541]
[1748986659174,1.00311064,659.46,658.88,0.30354541]
[1748986659477,1.00311064,659.45,658.88,0.30354541]
[1748986659675,1.00311064,659.44,658.88,0.30354541]
[1748986659874,1.00311064,659.43,658.88,0.30354541]
[1748986660078,1.00311064,659.42,658.88,0.30354541]
[1748986660279,1.00311064,659.41,658.88,0.30354541]
[1748986660478,1.12676504,659.53,658.88,0.30354541]
[1748986660773,1.49607793,659.65,658.88,0.30354541]
[1748986660978,1.00468844,659.64,658.88,0.30354541]
[1748986661378,1.12642297,659.54,658.88,0.30354541]
[1748986662681,1.00468844,659.53,658.88,0.30354541]
[1748986664085,1.12642297,659.54,658.88,0.30354541]
[1748986664584,1.49607793,659.67,658.88,0.30354541]
[1748986664783,2.24851404,659.8,658.88,0.30354541]
[1748986665283,3.7475234,660.27,658.88,0.30354541]
[1748986673583,1.1260965,659.58,658.88,0.30354541]
[1748986673789,1.00337048,659.57,658.88,0.30354541]
[1748986674088,1.00337048,659.56,658.88,0.30354541]
[1748986674384,1.00337048,659.55,658.88,0.30354541]
[1748986674591,1.00337048,659.54,658.88,0.30354541]
[1748986674889,1.00337048,659.53,658.88,0.30354541]
[1748986675189,1.00337048,659.52,658.88,0.30354541]
[1748986675383,1.00337048,659.51,658.88,0.30354541]
[1748986675683,1.00337048,659.5,658.88,0.30354541]
[1748986675889,1.00337048,659.49,658.88,0.30354541]
[1748986676089,1.00337048,659.48,658.88,0.30354541]
[1748986676287,1.00337048,659.47,658.88,0.30354541]
[1748986676484,1.00337048,659.46,658.88,0.30354541]
[1748986676689,1.00337048,659.45,658.88,0.30354541]
[1748986676887,1.00337048,659.44,658.88,0.30354541]
[1748986677089,1.00337048,659.43,658.88,0.30354541]
[1748986677289,1.00337048,659.42,658.88,0.30354541]
[1748986677490,1.00337048,659.41,658.88,0.30354541]
[1748986677691,1.1260965,659.56,658.88,0.30354541]
[1748986677692,1.00337048,659.4,658.88,0.30354541]
[1748986677891,1.00388562,659.39,658.92,0.480923]
[1748986678087,1.00388562,659.38,658.93,0.30352237]
[1748986678293,1.00388562,659.37,658.93,0.30352237]
[1748986678488,3.7475234,660.27,659.03,0.480923]
[1748986678489,1.00388562,659.36,659.03,0.480923]
[1748986678691,1.00388562,659.35,659.04,0.30347171]
[1748986678887,1.00388562,659.34,659.04,0.30347171]
[1748986679192,1.00388562,659.33,659.04,0.30347171]
[1748986679389,1.12600743,659.52,659.04,0.78439471]
[1748986679595,1.00385393,659.51,659.04,0.78439471]
[1748986679787,1.00385393,659.5,659.04,0.78439471]
[1748986679988,1.00385393,659.49,659.04,0.78439471]
[1748986680192,1.00385393,659.48,659.04,0.78439471]
[1748986680393,1.00385393,659.47,659.04,0.78439471]
[1748986680593,1.00385393,659.46,659.04,0.78439471]
[1748986680893,1.00385393,659.45,659.04,0.78439471]
[1748986681091,1.00378326,659.44,659.04,0.78439471]
[1748986681396,1.00378326,659.43,659.07,0.480923]
[1748986681597,1.00378326,659.42,659.08,0.30345329]
[1748986681799,1.00378326,659.41,659.08,0.30345329]
[1748986681992,1.12589003,659.51,659.08,0.30345329]
[1748986681993,1.00378326,659.4,659.08,0.30345329]
[1748986682196,1.00378326,659.39,659.08,0.30345329]
[1748986682498,1.00378326,659.38,659.08,0.30345329]
[1748986682697,1.00378326,659.37,659.08,0.30345329]
[1748986682897,1.00378326,659.36,659.08,0.30345329]
[1748986683094,1.00378326,659.35,659.08,0.30345329]
[1748986683296,1.00378326,659.34,659.08,0.30345329]
[1748986683498,1.00378326,659.33,659.08,0.30345329]
[1748986683693,1.00378326,659.32,659.08,0.30345329]
[1748986683897,1.12589003,659.51,659.08,0.30345329]
[1748986684097,1.00404266,659.5,659.08,0.30345329]
[1748986684297,1.12589003,659.51,659.08,0.30345329]
[1748986684298,1.00404266,659.49,659.08,0.30345329]
[1748986684496,1.50146201,659.62,659.08,0.30345329]
[1748986684794,1.12571773,659.51,659.08,0.30345329]
[1748986684998,1.00409527,659.5,659.08,0.30345329]
[1748986685298,1.00409527,659.49,659.08,0.30345329]
[1748986685500,1.00409527,659.48,659.08,0.30345329]
[1748986685700,1.00409527,659.47,659.08,0.30345329]
[1748986686002,1.00409527,659.46,659.08,0.30345329]
[1748986686202,1.00409527,659.45,659.08,0.30345329]
[1748986686402,3.7475234,660.13,659.08,0.30345329]
[1748986686403,1.00409527,659.44,659.08,0.30345329]
[1748986686603,1.00409527,659.43,659.08,0.30345329]
[1748986686796,1.00409527,659.42,659.08,0.30345329]
[1748986687000,1.00409527,659.41,659.08,0.30345329]
[1748986687201,1.00409527,659.4,659.08,0.30345329]
[1748986687397,1.00409527,659.39,659.08,0.30345329]
[1748986687603,1.00409527,659.38,659.08,0.30345329]
[1748986687803,1.00409527,659.37,659.08,0.30345329]
[1748986688000,1.00409527,659.36,659.08,0.30345329]
[1748986688199,1.00409527,659.35,659.08,0.30345329]
[1748986688405,1.007486,659.34,659.08,0.30345329]
[1748986688600,1.007486,659.33,659.08,0.30345329]
[1748986688798,1.007486,659.32,659.08,0.30345329]
[1748986688999,1.007486,659.31,659.08,0.30345329]
[1748986689302,1.007486,659.3,659.08,0.30345329]
[1748986689499,1.007486,659.29,659.08,0.30345329]
[1748986689706,1.007486,659.28,659.08,0.30345329]
[1748986690007,1.007486,659.27,659.08,0.30345329]
[1748986690207,1.007486,659.26,659.08,0.30345329]
[1748986690506,1.007486,659.25,659.08,0.30345329]
[1748986690702,1.007486,659.24,659.08,0.30345329]
[1748986690905,1.007486,659.23,659.08,0.30345329]
[1748986691105,1.007486,659.22,659.08,0.30345329]
[1748986691309,1.007486,659.21,659.08,0.30345329]
[1748986691511,1.007486,659.2,659.08,0.30345329]
[1748986691810,1.12625595,659.42,659.08,0.30345329]
[1748986692010,1.0085153,659.41,659.08,0.30345329]
[1748986692212,1.00851511,659.4,659.08,0.30345329]
[1748986692415,1.00851511,659.39,659.08,0.30345329]
[1748986692713,1.00851511,659.38,659.08,0.30345329]
[1748986692908,1.00851511,659.37,659.08,0.30345329]
[1748986693110,1.00851511,659.36,659.08,0.30345329]
[1748986693317,1.00851511,659.35,659.08,0.30345329]
[1748986693508,1.00851511,659.34,659.08,0.30345329]
[1748986693709,1.00851511,659.33,659.08,0.30345329]
[1748986693913,1.00851511,659.32,659.08,0.30345329]
[1748986694108,1.00851511,659.31,659.08,0.30345329]
[1748986694312,1.00851511,659.3,659.08,0.30345329]
[1748986694508,1.00851511,659.29,659.08,0.30345329]
[1748986694808,1.00851511,659.28,659.08,0.30345329]
[1748986695013,1.00851511,659.27,659.08,0.30345329]
[1748986695214,1.00851511,659.26,659.08,0.30345329]
[1748986695414,1.00851511,659.25,659.08,0.30345329]
[1748986695713,1.00851511,659.24,659.08,0.30345329]
[1748986695908,1.00851511,659.23,659.08,0.30345329]
[1748986696112,1.0084879,659.22,659.08,0.30345329]
[1748986696308,1.0084879,659.21,659.08,0.30345329]
[1748986696515,1.0084879,659.2,659.08,0.30345329]
[1748986696714,1.0084879,659.19,659.08,0.30345329]
[1748986696909,1.0084879,659.18,659.08,0.30345329]
[1748986697116,1.0084879,659.17,659.08,0.30345329]
[1748986697311,3.7475234,660.12,659.08,0.30345329]
[1748986697312,1.00918758,659.16,659.08,0.30345329]
[1748986697516,1.12753855,659.38,659.08,0.30345329]
[1748986697718,1.00919424,659.37,659.08,0.30345329]
[1748986698019,1.00919424,659.36,659.08,0.30345329]
[1748986698222,1.00919424,659.35,659.08,0.30345329]
[1748986698417,1.00919424,659.34,659.08,0.30345329]
[1748986698719,1.00919424,659.33,659.08,0.30345329]
[1748986698918,1.00919424,659.32,659.08,0.30345329]
[1748986699219,1.00919424,659.31,659.08,0.30345329]
[1748986699418,1.00919424,659.3,659.08,0.30345329]
[1748986699719,1.00919424,659.29,659.08,0.30345329]
[1748986699921,1.00919424,659.28,659.08,0.30345329]
[1748986700119,1.00968757,659.27,659.08,0.30345329]
[1748986700420,1.00968757,659.26,659.08,0.30345329]
[1748986700620,1.00968757,659.25,659.08,0.30345329]
[1748986700820,1.00968757,659.24,659.08,0.30345329]
[1748986701120,1.00968757,659.23,659.08,0.30345329]
[1748986701315,1.00968757,659.22,659.08,0.30345329]
[1748986701520,1.00968757,659.21,659.08,0.30345329]
[1748986701822,1.00968757,659.2,659.08,0.30345329]
[1748986702021,1.00968757,659.19,659.08,0.30345329]
[1748986702223,1.00968757,659.18,659.08,0.30345329]
[1748986702422,1.00968757,659.17,659.08,0.30345329]
[1748986702718,1.00968757,659.16,659.08,0.30345329]
[1748986702917,1.00968757,659.15,659.08,0.30345329]
[1748986703122,1.00968757,659.14,659.08,0.30345329]
[1748986703418,1.12875918,659.35,659.08,0.30345329]
[1748986703623,1.00980122,659.34,659.08,0.30345329]
[1748986703923,1.00980122,659.33,659.08,0.30345329]
[1748986704123,1.00979873,659.32,659.08,0.30345329]
[1748986704324,1.00979873,659.31,659.08,0.30345329]
[1748986704519,1.00979873,659.3,659.08,0.30345329]
[1748986704718,1.00979873,659.29,659.08,0.30345329]
[1748986704921,1.00979873,659.28,659.08,0.30345329]
[1748986705121,1.00979873,659.27,659.08,0.30345329]
[1748986705318,1.00979873,659.26,659.08,0.30345329]
[1748986705524,1.00979873,659.25,659.08,0.30345329]
[1748986705824,1.00979873,659.24,659.08,0.30345329]
[1748986706022,1.00979873,659.23,659.08,0.30345329]
[1748986706324,1.00979873,659.22,659.08,0.30345329]
[1748986706525,1.00979873,659.21,659.08,0.30345329]
[1748986706822,1.00979873,659.2,659.08,0.30345329]
[1748986707024,1.00979873,659.19,659.08,0.30345329]
[1748986707218,1.00979873,659.18,659.08,0.30345329]
[1748986707417,1.00979873,659.17,659.08,0.30345329]
[1748986707622,1.00979873,659.16,659.08,0.30345329]
[1748986707925,1.50146201,659.49,659.08,0.30345329]
[1748986708123,1.12852321,659.37,659.08,0.30345329]
[1748986708319,1.00980198,659.36,659.08,0.30345329]
[1748986708518,1.00980198,659.35,659.08,0.30345329]
[1748986708719,1.00980198,659.34,659.08,0.30345329]
[1748986708919,1.00980198,659.33,659.08,0.30345329]
[1748986709123,1.00980198,659.32,659.08,0.30345329]
[1748986709319,1.12852321,659.36,659.08,0.30345329]
[1748986709320,1.00980198,659.31,659.08,0.30345329]
[1748986709520,1.00980198,659.3,659.08,0.30345329]
[1748986709720,1.00980198,659.29,659.08,0.30345329]
[1748986709918,1.00980198,659.28,659.08,0.30345329]
[1748986710122,1.00980198,659.27,659.08,0.30345329]
[1748986710325,1.00980198,659.26,659.08,0.30345329]
[1748986710525,1.00980198,659.25,659.08,0.30345329]
[1748986710727,1.00980198,659.24,659.08,0.30345329]
[1748986710926,1.00980198,659.23,659.08,0.30345329]
[1748986711125,1.00980198,659.22,659.08,0.30345329]
[1748986711321,1.00980198,659.21,659.08,0.30345329]
[1748986711629,1.00980198,659.2,659.08,0.30345329]
[1748986711823,1.00980198,659.19,659.08,0.30345329]
[1748986712126,1.00973411,659.18,659.08,0.30345329]
[1748986712324,1.00973411,659.17,659.08,0.30345329]
[1748986712524,1.00973411,659.16,659.08,0.30345329]
[1748986712722,1.00973411,659.15,659.08,0.30345329]
[1748986712929,1.12852828,659.35,659.08,0.30345329]
[1748986713127,1.0097342,659.34,659.08,0.30345329]
[1748986713326,1.0097342,659.33,659.08,0.30345329]
[1748986713527,1.0097342,659.32,659.08,0.30345329]
[1748986713729,1.0097342,659.31,659.08,0.30345329]
[1748986713922,1.0097342,659.3,659.08,0.30345329]
[1748986714128,1.0097342,659.29,659.08,0.30345329]
[1748986714324,1.0097342,659.28,659.08,0.30345329]
[1748986714523,1.0097342,659.27,659.08,0.30345329]
[1748986714723,1.0097342,659.26,659.08,0.30345329]
[1748986714923,1.0097342,659.25,659.08,0.30345329]
[1748986715127,1.0097342,659.24,659.08,0.30345329]
[1748986715323,1.0097342,659.23,659.08,0.30345329]
[1748986715523,1.0097342,659.22,659.08,0.30345329]
[1748986715722,1.0097342,659.21,659.08,0.30345329]
[1748986716029,1.00993705,659.2,659.08,0.30345329]
[1748986716223,1.00993705,659.19,659.08,0.30345329]
[1748986716427,1.00993705,659.18,659.08,0.30345329]
[1748986716626,1.00993705,659.17,659.08,0.30345329]
[1748986716826,1.12848187,659.35,659.08,0.30345329]
[1748986716827,1.00993705,659.16,659.08,0.30345329]
[1748986717028,1.00993705,659.15,659.08,0.30345329]
[1748986717228,1.00993705,659.14,659.08,0.30345329]
[1748986717529,1.00993705,659.13,659.08,0.30345329]
[1748986717731,1.00993705,659.12,659.08,0.30345329]
[1748986718027,1.00993705,659.11,659.08,0.30345329]
[1748986718230,1.00993705,659.1,659.08,0.30345329]
[1748986718431,1.00993705,659.09,659.08,0.30345329]
[1748986720033,1.00961863,659.09,659.08,0.30345329]
[1748986721139,1.12806765,659.41,659.08,0.30345329]
[1748986721329,1.00971543,659.4,659.08,0.30345329]
[1748986721530,1.00971543,659.39,659.08,0.30345329]
[1748986721729,3.7475234,660.43,659.08,0.30345329]
[1748986721730,1.00971543,659.38,659.08,0.30345329]
[1748986721933,1.00971543,659.37,659.08,0.30345329]
[1748986722135,1.00971543,659.36,659.08,0.30345329]
[1748986722435,3.7475234,660.45,659.08,0.30345329]
[1748986722436,1.00971543,659.35,659.08,0.30345329]
[1748986722632,1.00971543,659.34,659.08,0.30345329]
[1748986722840,1.00971543,659.33,659.08,0.30345329]
[1748986723137,1.00971543,659.32,659.08,0.30345329]
[1748986723435,1.00971543,659.31,659.08,0.30345329]
[1748986723637,1.00971543,659.3,659.08,0.30345329]
[1748986723834,1.50146201,659.56,659.08,0.30345329]
[1748986723835,1.00993944,659.29,659.08,0.30345329]
[1748986724035,1.00993944,659.28,659.08,0.30345329]
[1748986724235,1.00993944,659.27,659.08,0.30345329]
[1748986724429,1.00993944,659.26,659.08,0.30345329]
[1748986724629,1.00993944,659.25,659.08,0.30345329]
[1748986724833,1.00993944,659.24,659.08,0.30345329]
[1748986725133,1.00993944,659.23,659.08,0.30345329]
[1748986725435,1.00993944,659.22,659.08,0.30345329]
[1748986725635,1.00993944,659.21,659.08,0.30345329]
[1748986725829,1.00993944,659.2,659.08,0.30345329]
[1748986726033,1.00993944,659.19,659.08,0.30345329]
[1748986726231,1.12816499,659.43,659.08,0.30345329]
[1748986726537,1.0098638,659.42,659.08,0.30345329]
[1748986726738,1.0098638,659.41,659.08,0.30345329]
[1748986726938,1.0098638,659.4,659.08,0.30345329]
[1748986727139,1.0098638,659.39,659.08,0.30345329]
[1748986727339,1.0098638,659.38,659.08,0.30345329]
[1748986727535,1.12816499,659.42,659.08,0.30345329]
[1748986727536,1.0098638,659.37,659.08,0.30345329]
[1748986727740,1.0098638,659.36,659.08,0.30345329]
[1748986727943,1.00982765,659.35,659.08,0.30345329]
[1748986728137,1.00982765,659.34,659.08,0.30345329]
[1748986728343,1.00982765,659.33,659.08,0.30345329]
[1748986728540,1.00982765,659.32,659.08,0.30345329]
[1748986728736,2.25219301,659.68,659.08,0.30345329]
[1748986729144,1.00994809,659.67,659.08,0.30345329]
[1748986730040,2.25219301,659.68,659.08,0.30345329]
[1748986730346,3.7475234,660.21,659.08,0.30345329]
[1748986732044,5.54934743,660.47,659.08,0.30345329]
[1748986738249,3.76100173,660.04,659.08,0.30345329]
[1748986738448,1.01023964,660.46,659.08,0.30345329]
[1748986740453,0.30281466,660.47,659.08,0.30345329]
[1748986743358,1.12840455,659.38,659.08,0.30345329]
[1748986743558,1.01035108,659.37,659.08,0.30345329]
[1748986743759,1.01041579,659.36,659.08,0.30345329]
[1748986744053,1.01041579,659.35,659.08,0.30345329]
[1748986744257,1.01041579,659.34,659.08,0.30345329]
[1748986744461,1.01041579,659.33,659.08,0.30345329]
[1748986744657,1.01041579,659.32,659.08,0.30345329]
[1748986744858,1.01041579,659.31,659.08,0.30345329]